bitfinex-derivatives/quotes_ETHF0:USTF0_20250620
["timestamp","ask_amount","ask_price","bid_price","bid_amount"]
[1750394879147,2.08309,2507.6,2507.5,0.6598]
[1750394879343,0.79755,2507.5,2507.4,0.79754]
[1750394879539,0.79755,2507.4,2507.3,4.63367]
[1750394879739,0.79755,2507.4,2507.2,0.6587]
[1750394879935,0.79755,2507.4,2507.3,0.79759]
[1750394880137,1.3388,2507.5,2507.2,0.6587]
[1750394880138,0.79759,2507.3,2507.2,1.4563]
[1750394880744,0.79759,2507.3,2507.2,0.6587]
[1750394880943,0.79759,2507.3,2506.8,0.79772]
[1750394880944,0.79772,2506.9,2506.8,0.79772]
[1750394881144,0.79771,2507.0,2506.9,0.7977]
[1750394881343,1.99399,2507.3,2506.9,0.7977]
[1750394881344,10.32733,2507.5,2507.4,0.79756]
[1750394881646,3.2078,2507.5,2507.4,3.96917849]
[1750394882149,9.5298,2507.8,2507.1,3.2078]
[1750394882351,1.3291,2507.7,2507.4,3.17161849]
[1750394882655,0.79746,2507.7,2507.6,0.79749]
[1750394882843,0.79749,2507.6,2507.5,1.4831]
[1750394883145,0.79748,2507.7,2507.6,0.79748]
[1750394883555,4.00523,2507.8,2507.7,0.79746]
[1750394884449,0.7976,2507.3,2506.9,1.99429]
[1750394884644,0.79765,2507.2,2507.1,0.79763]
[1750394884839,6.9747,2507.5,2507.0,0.6856]
[1750394885152,0.7976,2507.3,2507.2,0.79759]
[1750394885450,0.79765,2507.2,2507.1,0.79764]
[1750394886245,0.7976,2507.3,2507.2,0.79759]
[1750394888252,0.79758,2507.4,2507.3,0.79758]
[1750394888850,0.79758,2507.4,2507.2,0.7976]
[1750394889049,0.79759,2507.3,2507.2,0.7976]
[1750394889253,0.79758,2507.4,2507.3,0.79758]
[1750394889851,10.98005,2507.5,2507.4,0.79755]
[1750394890050,0.79757,2507.4,2507.3,0.79756]
[1750394891253,0.79752,2507.6,2507.5,0.79751]
[1750394891452,0.79748,2507.7,2507.6,0.79749]
[1750394891656,4.8508,2507.9,2507.8,0.79743]
[1750394892252,3.2078,2507.9,2507.8,1.46803]
[1750394892450,4.0052,2507.9,2507.8,1.46803]
[1750394894356,5.3626,2507.9,2507.8,1.46803]
[1750394897549,5.3626,2507.9,2507.8,0.6706]
[1750394898156,5.3626,2507.9,2507.8,1.46803]
[1750394899059,0.7975,2507.7,2507.6,0.79746]
[1750394900359,0.79749,2507.6,2507.5,1.42151]
[1750394900649,0.79749,2507.6,2507.5,1.42152]
[1750394900855,0.79749,2507.6,2507.5,0.624]
[1750394901158,2.11609,2507.6,2507.5,0.624]
[1750394901757,0.79759,2507.3,2507.2,0.79759]
[1750394901958,0.79759,2507.3,2507.2,1.47819]
[1750394903657,0.79759,2507.3,2507.2,0.79762]
[1750394903858,0.79756,2507.5,2507.4,0.79756]
[1750394904063,4.00531,2507.6,2507.5,0.79752]
[1750394904257,4.00531,2507.6,2507.3,1.99393]
[1750394904258,0.79748,2507.7,2507.6,0.79746]
[1750394904453,4.4977,2508.0,2507.6,3.17161849]
[1750394904759,1.96252407,2507.9,2507.8,0.7974]
[1750394905464,1.16509407,2507.9,2507.8,0.7974]
[1750394905762,3.2078,2508.0,2507.9,0.7974]
[1750394906057,10.3291,2508.3,2507.8,5.16516849]
[1750394906364,1.1666929,2508.2,2508.1,0.79733]
[1750394907665,0.79722,2508.5,2508.4,0.79721]
[1750394907960,1.96401713,2508.5,2508.4,0.79721]
[1750394908557,0.79725,2508.4,2508.3,0.79724]
[1750394908757,1.16679713,2508.5,2508.2,3.83591849]
[1750394908758,0.79723,2508.5,2508.4,0.79724]
[1750394908959,0.79724,2508.4,2508.3,0.79725]
[1750394914469,2.75984,2508.4,2508.3,0.79725]
[1750394916966,2.13584,2508.4,2508.3,0.79725]
[1750394918369,0.7973,2508.3,2508.2,0.79727]
[1750394918572,2.13585,2508.4,2508.3,0.79727]
[1750394920270,2.13585,2508.4,2508.0,4.00514]
[1750394920271,0.79733,2508.1,2508.0,4.00514]
[1750394920669,0.79731,2508.2,2508.1,0.7973]
[1750394922972,0.79736,2508.1,2508.0,0.79734]
[1750394923175,2.12016,2508.1,2508.0,0.79734]
[1750394923470,1.3228,2508.1,2508.0,0.79736]
[1750394924573,4.64598,2508.3,2508.2,0.7973]
[1750394924773,11.60118,2508.3,2508.2,0.7973]
[1750394925174,0.79733,2508.2,2508.1,0.79731]
[1750394925972,2.07633,2508.2,2508.1,0.79731]
[1750394927880,1.279,2508.2,2508.1,0.79731]
[1750394928086,2.0763,2508.2,2508.1,0.79731]
[1750394930681,0.79736,2508.1,2508.0,0.79734]
[1750394930983,2.08076,2508.1,2508.0,0.79734]
[1750394931183,0.79736,2508.0,2507.9,0.6257]
[1750394931486,0.7974,2507.9,2507.8,0.7974]
[1750394931783,0.79746,2507.7,2507.6,0.79748]
[1750394932279,2.67485,2507.8,2507.7,0.79746]
[1750394933178,2.67485,2507.8,2507.5,0.6257]
[1750394933179,0.79749,2507.7,2507.6,0.79746]
[1750394933380,2.04999,2507.7,2507.6,0.79746]
[1750394934782,0.79756,2507.4,2507.3,1.47557]
[1750394934985,0.79756,2507.4,2507.3,2.14837]
[1750394935683,0.79759,2507.3,2507.2,0.7976]
[1750394935886,0.79758,2507.4,2507.3,0.79756]
[1750394936290,0.79762,2507.2,2507.1,4.67824]
[1750394937986,2.17401,2507.3,2507.2,0.79762]
[1750394938686,0.79762,2507.2,2507.1,4.67822]
[1750394939192,2.17401,2507.3,2507.2,0.79762]
[1750394941788,1.3764,2507.3,2507.2,0.79762]
[1750394941979,2.17399,2507.3,2507.2,0.79762]
[1750394942180,7.49594849,2507.8,2507.1,9.04632849]
[1750394942380,1.2981,2507.6,2507.5,0.7975]
[1750394943484,4.00527,2507.7,2507.6,0.79749]
[1750394943885,4.00526,2507.7,2507.6,0.79749]
[1750394946585,3.2078,2507.7,2507.6,0.79749]
[1750394946793,1.2616,2507.7,2507.6,0.79749]
[1750394947288,0.79745,2507.8,2507.7,0.79746]
[1750394948484,11.58781,2508.0,2507.9,0.7974]
[1750394948788,0.79743,2507.9,2507.8,0.79741]
[1750394949293,0.79748,2507.8,2507.7,0.79744]
[1750394951991,2.11082,2507.9,2507.8,0.79743]
[1750394952294,4.00519,2508.0,2507.9,0.7974]
[1750394953193,3.2078,2508.0,2507.9,0.7974]
[1750394953390,4.00516,2508.0,2507.9,0.7974]
[1750394954296,0.79743,2507.9,2507.8,0.7974]
[1750394954889,2.11793,2507.9,2507.8,0.7974]
[1750394955187,2.79323,2507.9,2507.8,0.7974]
[1750394955795,2.11793,2507.9,2507.8,0.7974]
[1750394956290,1.3205,2507.9,2507.8,0.7974]
[1750394956591,4.00518,2508.0,2507.9,0.7974]
[1750394957396,0.79745,2507.8,2507.7,0.79743]
[1750394957595,0.79742,2507.9,2507.8,0.7974]
[1750394958592,3.2078,2508.0,2507.6,0.686]
[1750394958798,0.79746,2507.8,2507.7,0.79744]
[1750394959289,3.2078,2508.0,2507.6,2.6797]
[1750394959598,0.79739,2508.0,2507.9,0.79736]
[1750394959790,5.16497849,2508.1,2507.7,3.2078]
[1750394959997,0.79746,2507.8,2507.7,0.79744]
[1750394963494,0.79746,2507.8,2507.6,0.686]
[1750394963495,2.08922,2507.9,2507.8,0.79743]
[1750394963696,3.25688501,2507.9,2507.8,0.79743]
[1750394967004,0.79746,2507.8,2507.7,0.79744]
[1750394967297,3.25033977,2507.8,2507.7,0.79744]
[1750394970502,2.45287977,2507.8,2507.7,0.79744]
[1750394971194,3.25030977,2507.8,2507.7,0.79744]
[1750394971891,1.16807977,2507.8,2507.7,0.79744]
[1750394972095,3.17161849,2508.1,2508.0,0.79736]
[1750394972096,1.3337,2508.1,2508.0,0.79736]
[1750394972296,1.16826228,2508.1,2508.0,0.79736]
[1750394973003,1.16826228,2508.1,2508.0,1.42616]
[1750394973902,1.16826228,2508.1,2507.7,3.2078]
[1750394974096,0.79743,2507.9,2507.8,0.7974]
[1750394974301,0.79745,2507.8,2507.7,0.79743]
[1750394974504,3.23411228,2507.8,2507.7,0.79743]
[1750394994426,0.79749,2507.7,2507.6,0.79747]
[1750394994625,2.15919,2507.7,2507.6,0.79747]
[1750394995529,3.33031978,2507.7,2507.6,0.79747]
[1750394999730,1.17112978,2507.7,2507.6,0.79747]
[1750394999931,1.96858978,2507.7,2507.6,0.79747]
[1750395000423,1.17112978,2507.7,2507.6,0.79747]
[1750395000620,1.96858978,2507.7,2507.6,0.79747]
[1750395001432,1.17112978,2507.7,2507.6,0.79747]
[1750395001731,1.96858978,2507.7,2507.6,0.79747]
[1750395005231,1.17112978,2507.7,2507.5,0.6288]
[1750395005436,0.79749,2507.6,2507.5,1.42632]
[1750395005637,2.09269,2507.6,2507.5,1.42632]
[1750395005837,3.26431137,2507.6,2507.5,1.42632]
[1750395006038,3.26431137,2507.6,2507.5,0.6288]
[1750395006237,0.79756,2507.5,2507.4,0.79753]
[1750395006442,2.09276,2507.5,2507.4,0.79753]
[1750395006641,3.28907,2507.5,2507.2,0.7976]
[1750395006841,0.79759,2507.3,2507.2,0.7976]
[1750395007240,0.79762,2507.2,2507.1,7.76853]
[1750395007937,0.79765,2507.1,2507.0,0.79768]
[1750395008139,0.79768,2507.0,2506.9,2.08949]
[1750395008537,2.12838,2507.0,2506.9,2.08949]
[1750395008734,2.12838,2507.0,2506.9,0.6629]
[1750395010039,0.79778,2506.7,2506.6,0.79779]
[1750395010239,0.79781,2506.6,2506.5,7.77632816]
[1750395010734,0.79781,2506.6,2506.5,0.67051816]
[1750395010933,0.7978,2506.7,2506.5,0.67051816]
[1750395011132,0.79781,2506.6,2506.5,0.67051816]
[1750395011437,0.79781,2506.6,2506.5,1.46835816]
[1750395011641,0.79781,2506.6,2506.5,0.01051816]
[1750395011844,2.04931,2506.6,2506.5,0.01051816]
[1750395012038,3.2078,2506.7,2506.6,0.79781]
[1750395012232,3.2078,2506.7,2506.6,1.45781]
[1750395012438,0.79774,2506.8,2506.7,0.79776]
[1750395012640,2.5783,2507.0,2506.6,0.66]
[1750395012641,0.79777,2506.7,2506.6,0.66]
[1750395012841,0.79775,2506.8,2506.7,0.79776]
[1750395013148,4.57252,2507.0,2506.6,0.66]
[1750395013351,0.79777,2506.7,2506.6,0.66]
[1750395013547,0.79777,2506.7,2506.6,1.45781]
[1750395014145,2.17677,2506.8,2506.7,0.79777]
[1750395014348,1.46249,2507.0,2506.9,0.79771]
[1750395014644,3.2078,2507.1,2507.0,0.79768]
[1750395014841,0.7977,2507.0,2506.9,0.79769]
[1750395016746,0.79774,2506.9,2506.8,0.79771]
[1750395018955,0.79777,2506.8,2506.7,0.79775]
[1750395019657,0.79772,2507.0,2506.9,0.79769]
[1750395019951,0.79777,2506.7,2506.6,1.45777]
[1750395020349,0.79777,2506.7,2506.6,0.66]
[1750395020552,0.79781,2506.6,2506.5,4.01613816]
[1750395020755,2.69651,2506.6,2506.5,4.01613816]
[1750395023345,3.17161849,2506.8,2506.6,0.79778]
[1750395023546,1.2867,2506.8,2506.7,0.79778]
[1750395023956,5.25607849,2506.8,2506.7,0.79778]
[1750395024456,0.79778,2506.7,2506.6,1.46909]
[1750395024646,2.77378,2506.7,2506.6,1.46909]
[1750395024842,0.79781,2506.6,2506.5,4.01614816]
[1750395025152,2.08451,2506.6,2506.5,4.01614816]
[1750395025358,2.08451,2506.6,2506.5,0.80834816]
[1750395026459,1.2867,2506.6,2506.5,0.80834816]
[1750395026756,2.08451,2506.6,2506.5,0.80834816]
[1750395026957,8.30433,2506.9,2506.8,0.79772]
[1750395026958,0.79776,2506.9,2506.8,0.79772]
[1750395027558,2.11496,2506.9,2506.8,0.79772]
[1750395027750,2.11491,2506.9,2506.8,0.79772]
[1750395030358,0.79778,2506.8,2506.7,0.79776]
[1750395030559,2.14398,2506.8,2506.7,0.79776]
[1750395031557,0.79778,2506.8,2506.7,0.79776]
[1750395035559,0.79778,2506.7,2506.6,1.46388]
[1750395036653,0.6429,2506.8,2506.5,3.84591816]
[1750395036654,0.79781,2506.6,2506.5,4.01613816]
[1750395036856,3.22657185,2506.6,2506.5,0.01051816]
[1750395037056,3.22657797,2506.6,2506.5,0.01051816]
[1750395037360,3.22657797,2506.6,2506.5,0.80835816]
[1750395037560,3.22657797,2506.6,2506.5,0.01051816]
[1750395038563,3.87017797,2506.6,2506.5,0.01051816]
[1750395039165,1.96607797,2506.6,2506.5,0.01051816]
[1750395039965,3.28247797,2506.6,2506.5,0.01051816]
[1750395044654,3.28247797,2506.6,2506.5,0.80835816]
[1750395045258,3.28247797,2506.6,2506.5,0.01051816]
[1750395046156,0.798,2506.1,2506.0,0.798]
[1750395046561,0.798,2506.1,2506.0,1.4247]
[1750395046766,2.12169,2506.4,2506.3,0.7979]
[1750395046961,1.96654267,2506.4,2506.3,0.7979]
[1750395047161,0.79793,2506.3,2506.2,0.79792]
[1750395047361,0.79793,2506.2,2506.1,1.42775]
[1750395048263,0.79793,2506.2,2506.1,0.6298]
[1750395048567,0.79797,2506.1,2506.0,1.42469]
[1750395049064,2.13116,2506.2,2506.1,0.79797]
[1750395049267,0.79796,2506.2,2506.1,0.79797]
[1750395050763,2.05216,2506.2,2506.1,0.79797]
[1750395051361,0.79797,2506.1,2506.0,0.6267]
[1750395051666,0.79797,2506.1,2506.0,1.4247]
[1750395051872,0.79794,2506.3,2506.2,0.79791]
[1750395052254,3.17161849,2506.3,2506.0,0.6267]
[1750395052465,0.79797,2506.1,2506.0,1.42469]
[1750395053371,3.96958849,2506.1,2506.0,0.6267]
[1750395054271,3.96958849,2506.1,2506.0,1.4247]
[1750395054473,0.79797,2506.1,2506.0,1.4247]
[1750395054662,0.79797,2506.1,2506.0,0.6267]
[1750395054863,0.79797,2506.1,2506.0,1.4247]
[1750395055365,0.79797,2506.1,2506.0,0.6267]
[1750395055765,3.96958849,2506.1,2506.0,0.6267]
[1750395055957,0.79809,2505.7,2505.6,4.00593]
[1750395056162,0.79809,2505.7,2505.6,0.79813]
[1750395056362,0.79806,2505.9,2505.8,0.79801]
[1750395056558,3.2078,2506.1,2506.0,0.798]
[1750395056965,0.79796,2506.2,2506.1,0.79797]
[1750395057168,0.79797,2506.1,2506.0,0.6506]
[1750395057369,0.79809,2505.8,2505.6,9.5118]
[1750395057570,0.79809,2505.8,2505.7,1.44867]
[1750395058165,0.79809,2505.8,2505.7,0.6506]
[1750395058565,2.12559,2505.8,2505.7,0.6506]
[1750395059071,2.12559,2505.8,2505.7,1.44869]
[1750395059274,2.12559,2505.8,2505.7,0.6506]
[1750395059974,2.12559,2505.8,2505.7,1.44869]
[1750395060170,2.12559,2505.8,2505.7,0.6506]
[1750395060671,2.12559,2505.8,2505.3,0.6358]
[1750395060672,0.79819,2505.5,2505.4,0.79818]
[1750395060874,0.79819,2505.5,2505.4,1.44368]
[1750395061771,0.79819,2505.5,2505.4,0.6455]
[1750395062276,0.79811,2505.7,2505.6,0.79809]
[1750395062469,0.79809,2505.8,2505.7,0.79807]
[1750395062666,0.6343,2505.9,2505.8,0.79806]
[1750395062871,5.20211,2506.9,2506.0,0.798]
[1750395063166,0.79787,2506.4,2506.3,3.2078]
[1750395063369,0.79787,2506.4,2506.3,0.7979]
[1750395063577,1.3718,2506.4,2506.3,0.7979]
[1750395063778,1.3718,2506.4,2506.2,1.42202]
[1750395063970,2.16969,2506.4,2506.2,1.42202]
[1750395064274,0.79787,2506.4,2506.3,0.79788]
[1750395064476,0.79786,2506.5,2506.4,0.79786]
[1750395064667,2.16966,2506.5,2506.4,0.79786]
[1750395065766,3.17161849,2506.8,2506.3,3.17161849]
[1750395065967,1.3304,2506.7,2506.3,3.17161849]
[1750395066172,2.1282,2506.7,2506.6,0.79781]
[1750395066773,0.79783,2506.6,2506.5,0.79782]
[1750395066974,2.12823,2506.6,2506.5,0.79782]
[1750395067881,0.79787,2506.5,2506.4,0.79785]
[1750395068576,2.12823,2506.6,2506.5,0.79784]
[1750395068771,3.8676,2506.9,2506.7,0.79776]
[1750395068772,7.03921849,2506.9,2506.7,0.79776]
[1750395068978,0.79778,2506.8,2506.7,0.79776]
[1750395069176,4.00554,2506.9,2506.8,0.79774]
[1750395069475,3.2078,2506.9,2506.8,0.79774]
[1750395069879,2.98,2507.3,2506.8,0.79774]
[1750395069880,0.79763,2507.2,2507.1,0.79762]
[1750395070785,2.13463,2507.2,2507.1,0.79762]
[1750395071476,2.13462,2507.2,2507.1,0.79762]
[1750395071877,0.79762,2507.2,2507.1,0.79762]
[1750395072979,4.0054,2507.3,2507.2,0.79762]
[1750395073380,3.2078,2507.3,2507.2,0.79762]
[1750395073586,0.79751,2507.6,2507.5,0.79752]
[1750395075287,0.79755,2507.5,2507.4,0.79752]
[1750395075680,0.79762,2507.2,2507.1,5.31011]
[1750395075881,0.79761,2507.3,2507.2,0.79758]
[1750395079275,0.79762,2507.2,2507.1,0.6437]
[1750395079482,0.79771,2506.9,2506.8,10.1391]
[1750395079682,0.79771,2506.9,2506.8,6.9313]
[1750395080091,0.79771,2506.9,2506.8,1.43103]
[1750395081985,0.79771,2506.9,2506.8,0.79773]
[1750395082191,0.79771,2506.9,2506.7,0.6247]
[1750395082192,0.79774,2506.8,2506.7,0.6247]
[1750395082489,2.10484,2506.8,2506.7,1.42248]
[1750395083292,0.79774,2506.8,2506.7,1.42248]
[1750395083883,2.17134,2506.8,2506.7,1.42248]
[1750395084093,2.17134,2506.8,2506.7,0.6247]
[1750395084593,4.5814,2506.8,2506.5,7.09582]
[1750395084795,0.79784,2506.5,2506.4,0.6499]
[1750395084988,3.96945849,2506.5,2506.4,0.6499]
[1750395085292,3.96945849,2506.5,2506.2,3.8769]
[1750395085293,0.7979,2506.3,2506.2,1.46701]
[1750395085790,2.17149,2506.4,2506.3,0.7979]
[1750395086181,0.79789,2506.4,2506.3,0.7979]
[1750395086385,1.3442,2506.7,2506.5,0.79784]
[1750395086586,0.79778,2506.8,2506.7,0.79775]
[1750395086888,0.79774,2506.9,2506.8,0.79771]
[1750395087196,0.79774,2506.8,2506.7,1.42565]
[1750395089700,0.79784,2506.6,2506.5,0.79779]
[1750395090999,0.79787,2506.5,2506.4,0.79784]
[1750395095303,0.79787,2506.4,2506.3,1.43138]
[1750395096006,0.7979,2506.3,2506.2,3.2078]
[1750395096211,5.30031849,2506.3,2506.2,3.2078]
[1750395096406,0.798,2506.0,2505.9,0.6386]
[1750395096609,0.798,2506.0,2505.9,0.798]
[1750395097008,2.1288,2506.0,2505.9,0.798]
[1750395098411,0.79799,2506.1,2506.0,0.79795]
[1750395101708,3.8619,2506.4,2506.0,1.995]
[1750395101911,4.0057,2506.4,2506.3,0.7979]
[1750395103110,0.79793,2506.3,2506.2,0.79791]
[1750395103902,0.7979,2506.3,2506.2,0.79791]
[1750395105512,0.79798,2506.2,2506.1,0.79794]
[1750395106314,2.05803,2506.3,2506.2,0.79793]
[1750395106514,0.79793,2506.3,2506.2,0.79793]
[1750395106711,4.0057,2506.4,2506.3,0.7979]
[1750395107416,0.79793,2506.3,2506.2,0.79791]
[1750395108106,4.00567,2506.4,2506.3,0.7979]
[1750395111915,3.2078,2506.4,2506.3,3.96951849]
[1750395112105,0.79784,2506.6,2506.5,0.79781]
[1750395112310,1.9697803,2506.6,2506.5,0.79781]
[1750395112509,3.3137803,2506.6,2506.5,0.79781]
[1750395113721,2.14184,2506.6,2506.5,0.79781]
[1750395113919,3.31413239,2506.6,2506.5,0.79781]
[1750395114313,2.51629239,2506.6,2506.5,0.79781]
[1750395114514,1.17229239,2506.6,2506.5,0.79781]
[1750395114915,1.17229239,2506.6,2506.5,3.96942849]
[1750395115213,3.2078,2506.7,2506.6,0.79781]
[1750395115413,4.37981695,2506.7,2506.6,0.79781]
[1750395115920,5.17759695,2506.7,2506.6,0.79781]
[1750395116217,5.17759695,2506.7,2506.5,3.17161849]
[1750395116410,0.79781,2506.6,2506.5,0.79781]
[1750395116610,3.22766583,2506.6,2506.5,0.79781]
[1750395116915,3.86416583,2506.6,2506.5,0.79781]
[1750395117522,3.86419781,2506.6,2506.5,0.79781]
[1750395117817,0.79784,2506.5,2506.4,1.48907]
[1750395118023,0.79784,2506.6,2506.5,0.79781]
[1750395118523,3.2242014,2506.6,2506.5,0.79781]
[1750395119123,2.4263614,2506.6,2506.5,0.79781]
[1750395119417,1.17215191,2506.6,2506.5,0.79781]
[1750395119622,4.0056,2506.7,2506.6,0.79781]
[1750395119822,5.17782247,2506.7,2506.6,0.79781]
[1750395120023,6.53392247,2506.7,2506.6,0.79781]
[1750395120621,0.79784,2506.6,2506.5,0.79781]
[1750395120815,0.79784,2506.5,2506.4,0.6912]
[1750395121015,0.79784,2506.5,2506.4,1.48906]
[1750395121216,2.15394,2506.5,2506.4,1.48906]
[1750395123628,3.32600505,2506.5,2506.4,1.48906]
[1750395124130,3.32600505,2506.5,2506.4,0.79786]
[1750395126527,0.7979,2506.3,2506.2,0.6506]
[1750395126831,3.17161849,2506.3,2505.9,3.2078]
[1750395127024,0.798,2506.1,2506.0,0.79798]
[1750395128030,2.12126,2506.2,2506.1,0.79797]
[1750395129228,1.3233,2506.2,2506.1,0.79797]
[1750395129621,2.12123,2506.2,2506.1,0.79797]
[1750395130730,0.79788,2506.4,2506.3,0.7979]
[1750395131128,1.96846965,2506.4,2506.3,0.7979]
[1750395131720,1.17058965,2506.4,2506.3,0.7979]
[1750395132027,1.96845965,2506.4,2506.3,0.7979]
[1750395132228,1.96850497,2506.4,2506.3,0.7979]
[1750395132630,1.17063497,2506.4,2506.3,0.7979]
[1750395133129,0.79786,2506.5,2506.4,0.79787]
[1750395133431,1.96852775,2506.5,2506.4,0.79787]
[1750395133728,0.7979,2506.3,2506.2,0.79792]
[1750395134429,2.0993,2506.3,2506.2,0.79792]
[1750395135631,3.27006393,2506.3,2506.2,0.79792]
[1750395135833,0.79797,2506.2,2506.1,0.79794]
[1750395136030,2.68517,2506.2,2506.1,0.79794]
[1750395138831,1.8872,2506.2,2506.1,0.79794]
[1750395139134,2.05543,2506.2,2506.1,0.79794]
[1750395139939,1.2575,2506.2,2506.1,0.79794]
[1750395140140,2.05543,2506.2,2506.1,0.79794]
[1750395142235,0.79793,2506.2,2506.1,0.79794]
[1750395143342,0.79792,2506.3,2506.2,0.7979]
[1750395144151,1.643,2506.7,2506.6,0.79781]
[1750395144442,1.17039987,2506.7,2506.6,3.96942849]
[1750395144945,4.00553,2506.9,2506.8,0.79774]
[1750395145139,0.79777,2506.8,2506.6,3.17161849]
[1750395145446,0.79777,2506.8,2506.7,0.79774]
[1750395145737,1.17031407,2506.8,2506.7,0.79774]
[1750395146342,1.96805407,2506.8,2506.7,0.79774]
[1750395146545,1.17031407,2506.8,2506.7,0.79774]
[1750395146849,1.96805407,2506.8,2506.7,0.79774]
[1750395147447,0.79774,2506.8,2506.7,0.79774]
[1750395147650,3.2078,2506.9,2506.5,12.75820849]
[1750395147651,4.00552,2506.9,2506.8,0.79774]
[1750395147945,5.17550001,2506.9,2506.8,0.79774]
[1750395148947,0.79779,2506.8,2506.7,0.79775]
[1750395149349,0.79781,2506.6,2506.5,1.45572]
[1750395149639,0.79787,2506.5,2506.4,0.79785]
[1750395149846,0.7979,2506.4,2506.3,0.79788]
[1750395150438,0.7979,2506.3,2506.2,4.64541]
[1750395150949,0.7979,2506.3,2506.2,3.2078]
[1750395151338,2.0489,2506.3,2506.2,3.2078]
[1750395152351,2.0489,2506.3,2506.2,4.00573]
[1750395153038,2.0489,2506.3,2506.2,3.2078]
[1750395153443,2.6853,2506.3,2506.2,3.2078]
[1750395153651,2.6853,2506.3,2506.2,4.00573]
[1750395153950,2.6853,2506.3,2506.2,3.2078]
[1750395154950,0.798,2506.0,2505.9,0.79801]
[1750395155144,4.0058,2506.0,2505.9,0.79801]
[1750395155948,4.0058,2506.0,2505.8,0.79804]
[1750395155949,0.79806,2505.9,2505.8,0.79804]
[1750395156151,2.08246,2505.9,2505.8,0.79804]
[1750395157954,2.08246,2505.9,2505.7,1.45207]
[1750395157955,0.79806,2505.8,2505.7,1.45207]
[1750395158153,2.05286,2505.8,2505.7,1.45207]
[1750395158650,0.79812,2505.7,2505.6,0.79809]
[1750395158838,0.79816,2505.6,2505.5,0.79813]
[1750395159352,0.79816,2505.6,2505.4,0.6379]
[1750395159353,0.79816,2505.5,2505.4,0.6379]
[1750395159552,2.68316,2505.5,2505.4,0.6379]
[1750395159851,2.68316,2505.5,2505.4,1.43609]
[1750395162050,3.2078,2505.6,2505.5,0.79816]
[1750395162252,3.2078,2505.6,2505.5,3.96977849]
[1750395162956,4.00593,2505.6,2505.5,0.79816]
[1750395164454,0.79816,2505.5,2505.4,0.6379]
[1750395164850,0.79816,2505.5,2505.4,1.43609]
[1750395165557,4.00594,2505.6,2505.5,0.79816]
[1750395167060,0.79816,2505.5,2505.4,1.43606]
[1750395167360,2.07676,2505.5,2505.4,1.43609]
[1750395168057,1.2786,2505.5,2505.0,3.2078]
[1750395168256,3.2078,2505.3,2505.2,0.79823]
[1750395169263,3.2078,2505.3,2505.2,1.45983]
[1750395170053,4.00602,2505.3,2505.2,1.45983]
[1750395170462,4.00602,2505.3,2505.2,0.79823]
[1750395170666,0.79832,2505.1,2505.0,0.79831]
[1750395171163,0.79838,2504.9,2504.7,3.2078]
[1750395171462,0.79838,2504.9,2504.8,0.79838]
[1750395171858,2.17818,2504.9,2504.8,0.79838]
[1750395172257,0.79841,2504.8,2504.7,0.79839]
[1750395172566,2.17817,2504.9,2504.8,0.79838]
[1750395172761,1.3798,2504.9,2504.8,0.79838]
[1750395173168,3.2078,2505.0,2504.9,0.79835]
[1750395174363,0.79836,2504.9,2504.6,5.79822849]
[1750395174563,0.79836,2504.9,2504.8,0.79838]
[1750395175269,0.79841,2504.8,2504.7,0.79839]
[1750395176279,0.79841,2504.7,2504.6,0.6305]
[1750395176568,2.11491,2504.7,2504.6,0.6305]
[1750395177465,2.11491,2504.7,2504.6,1.42894]
[1750395177969,2.11491,2504.7,2504.6,0.79844]
[1750395178466,9.48811849,2504.7,2504.2,0.6661]
[1750395178670,3.17161849,2504.3,2504.0,0.6243]
[1750395178871,3.2078,2504.4,2504.3,0.79854]
[1750395179174,9.5138,2504.7,2504.4,0.79847]
[1750395179472,0.79849,2504.5,2504.4,0.6243]
[1750395179667,0.79849,2504.5,2504.4,1.42281]
[1750395179966,3.17161849,2504.5,2504.0,5.16820849]
[1750395180167,9.5138,2504.7,2504.1,1.99651]
[1750395180367,0.79847,2504.6,2504.5,0.79846]
[1750395181167,10.7845,2504.7,2504.6,0.79844]
[1750395181168,3.2078,2504.7,2504.6,0.79844]
[1750395181370,4.00623,2504.7,2504.6,0.79844]
[1750395181860,3.2078,2504.7,2504.6,0.79844]
[1750395182468,4.00621,2504.7,2504.6,0.79844]
[1750395182663,3.2078,2504.7,2504.6,0.79844]
[1750395183264,2.06327,2504.9,2504.8,0.79838]
[1750395183769,0.7984,2504.8,2504.7,0.79838]
[1750395184071,0.7984,2504.8,2504.7,1.48738]
[1750395184573,2.06328,2504.9,2504.8,0.79838]
[1750395185272,1.2649,2504.9,2504.8,0.79838]
[1750395185571,2.06325,2504.9,2504.8,0.79838]
[1750395187167,1.2649,2504.9,2504.8,0.79838]
[1750395187372,3.2078,2505.0,2504.9,0.79835]
[1750395189771,4.00612,2505.0,2504.9,0.79835]
[1750395189976,3.2078,2505.0,2504.9,0.79835]
[1750395190277,4.00612,2505.0,2504.9,0.79835]
[1750395191372,5.25762,2505.0,2504.9,0.79835]
[1750395191979,4.4593,2505.0,2504.9,0.79835]
[1750395192478,3.2078,2505.0,2504.9,0.79835]
[1750395194875,2.67723,2505.3,2504.9,0.79835]
[1750395194876,5.25754,2505.3,2505.2,0.79825]
[1750395195280,4.00604,2505.3,2505.2,0.79825]
[1750395195487,3.2078,2505.3,2505.2,0.79825]
[1750395195983,1.1669145,2505.3,2505.2,0.79825]
[1750395196480,1.1669145,2505.3,2505.2,3.96986849]
[1750395196783,10.42793,2505.6,2505.5,0.79816]
[1750395196981,5.34233,2505.6,2505.5,0.79816]